[Event "*** Titled Tuesday Blitz"]
[Site "Chess.com"]
[Date "2018.01.02"]
[Round "8"]
[White "LawrenceTrent"]
[Black "rasool78"]
[Result "1-0"]
[WhiteElo "2393"]
[BlackElo "2307"]
[TimeControl "180+2"]
[EndTime "14:45:41 PST"]
[Termination "LawrenceTrent won on time"]

1. e4 {[%clk 0:03:01.9]} 1... g6 {[%clk 0:03:00.5]} 2. d4 {[%clk 0:03:02.9]}
2... Bg7 {[%clk 0:03:01.1]} 3. Nc3 {[%clk 0:03:04.8]} 3... c5 {[%clk 0:03:02]}
4. dxc5 {[%clk 0:03:05.7]} 4... Bxc3+ {[%clk 0:03:02.5]} 5. bxc3 {[%clk
0:03:06.9]} 5... Qa5 {[%clk 0:03:04]} 6. Bd2 {[%clk 0:02:51.5]} 6... Qxc5 {[%clk
0:03:02.9]} 7. Bd3 {[%clk 0:02:52.3]} 7... Nf6 {[%clk 0:03:02.3]} 8. Nf3 {[%clk
0:02:49.4]} 8... d6 {[%clk 0:03:02.8]} 9. h3 {[%clk 0:02:49.7]} 9... Nbd7 {[%clk
0:02:58.6]} 10. O-O {[%clk 0:02:50.7]} 10... O-O {[%clk 0:02:37]} 11. Qe2 {[%clk
0:02:47.9]} 11... b6 {[%clk 0:02:35.7]} 12. Rfe1 {[%clk 0:02:43.8]} 12... Bb7
{[%clk 0:02:26.3]} 13. Nd4 {[%clk 0:02:44.9]} 13... Qc8 {[%clk 0:02:13.5]} 14.
f4 {[%clk 0:02:44.1]} 14... Nc5 {[%clk 0:01:51.6]} 15. e5 {[%clk 0:02:44.2]}
15... Nfe4 {[%clk 0:01:51.2]} 16. Qe3 {[%clk 0:02:20.9]} 16... Nxd3 {[%clk
0:01:40.4]} 17. cxd3 {[%clk 0:02:17.8]} 17... Nxd2 {[%clk 0:01:35.1]} 18. Qxd2
{[%clk 0:02:18.9]} 18... Qc5 {[%clk 0:01:28.6]} 19. Kh2 {[%clk 0:02:16.2]} 19...
Rac8 {[%clk 0:01:20.2]} 20. Rac1 {[%clk 0:02:15.6]} 20... Rfd8 {[%clk
0:01:08.8]} 21. e6 {[%clk 0:02:10.7]} 21... f6 {[%clk 0:00:58]} 22. Qf2 {[%clk
0:02:03.7]} 22... Qd5 {[%clk 0:00:53]} 23. Re2 {[%clk 0:01:50.8]} 23... b5
{[%clk 0:00:52.8]} 24. a3 {[%clk 0:01:50]} 24... a6 {[%clk 0:00:53.4]} 25. Qh4
{[%clk 0:01:48.5]} 25... Rc5 {[%clk 0:00:47.8]} 26. f5 {[%clk 0:01:49.3]} 26...
g5 {[%clk 0:00:42.7]} 27. Qh5 {[%clk 0:01:50.5]} 27... Ba8 {[%clk 0:00:15.3]}
28. Qf7+ {[%clk 0:01:48.1]} 28... Kh8 {[%clk 0:00:12.6]} 29. Qxe7 {[%clk
0:01:49.4]} 29... Rg8 {[%clk 0:00:03.5]} 30. Qxf6+ {[%clk 0:01:50.1]} 1-0

[Event "*** Titled Tuesday Blitz"]
[Site "Chess.com"]
[Date "2018.01.02"]
[Round "8"]
[White "attack2mateU"]
[Black "51616516516"]
[Result "1-0"]
[WhiteElo "2603"]
[BlackElo "2078"]
[TimeControl "180+2"]
[EndTime "14:45:43 PST"]
[Termination "attack2mateU won by resignation"]

1. e4 {[%clk 0:03:01.9]} 1... c5 {[%clk 0:02:58]} 2. Nf3 {[%clk 0:03:03.3]} 2...
g6 {[%clk 0:02:58.8]} 3. d4 {[%clk 0:03:04.6]} 3... cxd4 {[%clk 0:02:59]} 4.
Nxd4 {[%clk 0:03:06.5]} 4... Nc6 {[%clk 0:02:59.8]} 5. Nc3 {[%clk 0:03:07.8]}
5... Bg7 {[%clk 0:03:00.5]} 6. Be3 {[%clk 0:03:07.8]} 6... Nf6 {[%clk
0:03:01.5]} 7. Bc4 {[%clk 0:03:09.3]} 7... O-O {[%clk 0:03:02.7]} 8. Bb3 {[%clk
0:03:09.4]} 8... d6 {[%clk 0:03:04.2]} 9. f3 {[%clk 0:03:06.3]} 9... Bd7 {[%clk
0:03:05.7]} 10. Qd2 {[%clk 0:02:51]} 10... Nxd4 {[%clk 0:03:06.7]} 11. Bxd4
{[%clk 0:02:51.8]} 11... b5 {[%clk 0:03:08.6]} 12. a4 {[%clk 0:02:49.2]} 12...
b4 {[%clk 0:03:06.5]} 13. Nd5 {[%clk 0:02:49.5]} 13... Nxd5 {[%clk 0:03:05.5]}
14. Bxg7 {[%clk 0:02:48.8]} 14... Kxg7 {[%clk 0:03:05.5]} 15. exd5 {[%clk
0:02:48.9]} 15... a5 {[%clk 0:03:03.8]} 16. h4 {[%clk 0:02:47.1]} 16... h5
{[%clk 0:03:00.6]} 17. Qd4+ {[%clk 0:02:42]} 17... Kg8 {[%clk 0:02:52.1]} 18. g4
{[%clk 0:02:43]} 18... e5 {[%clk 0:02:32.8]} 19. dxe6 {[%clk 0:02:42.3]} 19...
Bxe6 {[%clk 0:02:34.1]} 20. O-O-O {[%clk 0:02:39.6]} 20... Bxb3 {[%clk
0:02:20.2]} 21. cxb3 {[%clk 0:02:41.5]} 21... Rc8+ {[%clk 0:01:49.3]} 22. Kb1
{[%clk 0:02:42]} 22... Rc5 {[%clk 0:01:17.4]} 23. Qxd6 {[%clk 0:02:16.5]} 23...
Qxd6 {[%clk 0:01:17.7]} 24. Rxd6 {[%clk 0:02:18.4]} 24... Re8 {[%clk 0:01:19.2]}
25. Rc1 {[%clk 0:02:05.8]} 25... Ree5 {[%clk 0:01:01.1]} 26. Rxc5 {[%clk
0:01:51.2]} 26... Rxc5 {[%clk 0:01:01.3]} 27. Rb6 {[%clk 0:01:51.6]} 27... Kf8
{[%clk 0:00:59.8]} 28. Rb5 {[%clk 0:01:47.5]} 28... Rxb5 {[%clk 0:00:37.2]} 29.
axb5 {[%clk 0:01:49.4]} 29... Ke8 {[%clk 0:00:38.4]} 30. Kc2 {[%clk 0:01:48.4]}
30... Kd7 {[%clk 0:00:39.8]} 31. Kd3 {[%clk 0:01:46.8]} 31... Kc7 {[%clk
0:00:40.6]} 32. g5 {[%clk 0:01:41.9]} 32... Kb7 {[%clk 0:00:30.4]} 33. Kd4
{[%clk 0:01:40.8]} 33... Kb6 {[%clk 0:00:22.5]} 34. Kc4 {[%clk 0:01:42.2]} 34...
Kb7 {[%clk 0:00:24.1]} 35. Kc5 {[%clk 0:01:43.6]} 35... Kc7 {[%clk 0:00:25.8]}
36. b6+ {[%clk 0:01:45]} 36... Kb7 {[%clk 0:00:27.5]} 37. Kb5 {[%clk 0:01:46.5]}
1-0

[Event "*** Titled Tuesday Blitz"]
[Site "Chess.com"]
[Date "2018.01.02"]
[Round "8"]
[White "Indianlad"]
[Black "kikydu96"]
[Result "1-0"]
[WhiteElo "2658"]
[BlackElo "2439"]
[TimeControl "180+2"]
[EndTime "14:45:56 PST"]
[Termination "Indianlad won by checkmate"]

1. d4 {[%clk 0:03:01.8]} 1... d5 {[%clk 0:02:58.1]} 2. Nf3 {[%clk 0:03:02.9]}
2... Nf6 {[%clk 0:02:52.5]} 3. Bf4 {[%clk 0:03:02.4]} 3... c5 {[%clk 0:02:48.9]}
4. e3 {[%clk 0:03:01.4]} 4... Nc6 {[%clk 0:02:49.7]} 5. Nbd2 {[%clk 0:03:01.8]}
5... Bf5 {[%clk 0:02:48.1]} 6. dxc5 {[%clk 0:02:54.8]} 6... e6 {[%clk
0:02:38.7]} 7. Nd4 {[%clk 0:02:54.3]} 7... Bg6 {[%clk 0:02:31.5]} 8. Bb5 {[%clk
0:02:49.2]} 8... Rc8 {[%clk 0:02:30.8]} 9. b4 {[%clk 0:02:49.1]} 9... Be7 {[%clk
0:02:28.4]} 10. Nxc6 {[%clk 0:02:49.9]} 10... bxc6 {[%clk 0:02:26.2]} 11. Ba6
{[%clk 0:02:51.3]} 11... Rb8 {[%clk 0:02:23.8]} 12. Bxb8 {[%clk 0:02:50.8]}
12... Qxb8 {[%clk 0:02:25.7]} 13. Rb1 {[%clk 0:02:45.3]} 13... O-O {[%clk
0:02:24.6]} 14. O-O {[%clk 0:02:43.9]} 14... e5 {[%clk 0:02:22.9]} 15. Nf3
{[%clk 0:02:41.2]} 15... e4 {[%clk 0:02:15.3]} 16. Nd4 {[%clk 0:02:40.7]} 16...
Qc7 {[%clk 0:02:02.8]} 17. c3 {[%clk 0:02:37.3]} 17... h5 {[%clk 0:01:59.2]} 18.
h3 {[%clk 0:02:37.4]} 18... Nd7 {[%clk 0:01:50.6]} 19. Be2 {[%clk 0:02:34.4]}
19... Ne5 {[%clk 0:01:47.6]} 20. Bxh5 {[%clk 0:02:34]} 20... Nf3+ {[%clk
0:01:43.1]} 21. Bxf3 {[%clk 0:02:34.7]} 21... exf3 {[%clk 0:01:44.2]} 22. Qxf3
{[%clk 0:02:36.6]} 22... Bxb1 {[%clk 0:01:44]} 23. Rxb1 {[%clk 0:02:38.5]} 23...
Rb8 {[%clk 0:01:27]} 24. Rd1 {[%clk 0:02:30.5]} 24... a5 {[%clk 0:01:26.4]} 25.
a3 {[%clk 0:02:30.8]} 25... axb4 {[%clk 0:01:26.5]} 26. axb4 {[%clk 0:02:32.7]}
26... Ra8 {[%clk 0:01:27.3]} 27. e4 {[%clk 0:02:33.5]} 27... Ra2 {[%clk
0:01:16.7]} 28. exd5 {[%clk 0:02:31.9]} 28... cxd5 {[%clk 0:01:17.1]} 29. Qxd5
{[%clk 0:02:32.3]} 29... Rb2 {[%clk 0:00:59.3]} 30. Qa8+ {[%clk 0:02:32.8]}
30... Kh7 {[%clk 0:00:58.9]} 31. Qe4+ {[%clk 0:02:31.7]} 31... g6 {[%clk
0:00:59.2]} 32. Qf3 {[%clk 0:02:27.7]} 32... Bh4 {[%clk 0:00:57.4]} 33. g3
{[%clk 0:02:24.5]} 33... Bg5 {[%clk 0:00:52.1]} 34. h4 {[%clk 0:02:25.3]} 34...
Bh6 {[%clk 0:00:35.8]} 35. h5 {[%clk 0:02:25.7]} 35... gxh5 {[%clk 0:00:32.3]}
36. Qf5+ {[%clk 0:02:24.7]} 36... Kg7 {[%clk 0:00:25.1]} 37. Qxh5 {[%clk
0:02:26.2]} 37... Bd2 {[%clk 0:00:24.4]} 38. Nf5+ {[%clk 0:02:22.4]} 38... Kf6
{[%clk 0:00:25.1]} 39. Nd6 {[%clk 0:02:22.9]} 39... Bxc3 {[%clk 0:00:21.3]} 40.
Ne8+ {[%clk 0:02:21.9]} 40... Ke7 {[%clk 0:00:19.6]} 41. Nxc7 {[%clk 0:02:22.1]}
41... Bxb4 {[%clk 0:00:20.6]} 42. Qe5+ {[%clk 0:02:21.5]} 42... Kf8 {[%clk
0:00:20.6]} 43. Rd8# {[%clk 0:02:23.4]} 1-0

[Event "*** Titled Tuesday Blitz"]
[Site "Chess.com"]
[Date "2018.01.02"]
[Round "8"]
[White "VerdeNotte"]
[Black "Kirill_Klukin"]
[Result "1-0"]
[WhiteElo "2666"]
[BlackElo "2454"]
[TimeControl "180+2"]
[EndTime "14:46:10 PST"]
[Termination "VerdeNotte won by resignation"]

1. g3 {[%clk 0:03:01.9]} 1... Nf6 {[%clk 0:02:58.4]} 2. Bg2 {[%clk 0:03:01]}
2... g6 {[%clk 0:02:56.3]} 3. e4 {[%clk 0:03:01.6]} 3... Bg7 {[%clk 0:02:58.2]}
4. e5 {[%clk 0:03:00.9]} 4... Ng8 {[%clk 0:02:58.8]} 5. d4 {[%clk 0:03:01.6]}
5... d6 {[%clk 0:03:00]} 6. exd6 {[%clk 0:03:02.7]} 6... cxd6 {[%clk 0:03:00.1]}
7. Nf3 {[%clk 0:03:03.1]} 7... Nf6 {[%clk 0:03:01.4]} 8. O-O {[%clk 0:03:03.8]}
8... O-O {[%clk 0:03:02.9]} 9. Re1 {[%clk 0:03:04.4]} 9... e6 {[%clk 0:03:02.5]}
10. b3 {[%clk 0:03:03.4]} 10... Bd7 {[%clk 0:03:03.2]} 11. Ba3 {[%clk
0:03:03.8]} 11... Bc6 {[%clk 0:03:03.3]} 12. c4 {[%clk 0:03:04.9]} 12... Re8
{[%clk 0:03:00.1]} 13. Nc3 {[%clk 0:03:05.4]} 13... a6 {[%clk 0:02:39.1]} 14.
Rc1 {[%clk 0:02:57.3]} 14... b5 {[%clk 0:02:39.4]} 15. d5 {[%clk 0:02:57.5]}
15... exd5 {[%clk 0:02:35.1]} 16. Rxe8+ {[%clk 0:02:46.9]} 16... Nxe8 {[%clk
0:02:36.1]} 17. Nxd5 {[%clk 0:02:43.2]} 17... bxc4 {[%clk 0:02:35.1]} 18. Rxc4
{[%clk 0:02:43.5]} 18... Bb5 {[%clk 0:02:23.8]} 19. Rc8 {[%clk 0:02:42.6]} 19...
Qa5 {[%clk 0:02:11.6]} 20. Bxd6 {[%clk 0:02:35.6]} 20... Qxa2 {[%clk 0:01:26.7]}
21. Bxb8 {[%clk 0:02:33.7]} 21... Bf8 {[%clk 0:01:16.1]} 22. Nb6 {[%clk
0:02:23]} 22... Rxb8 {[%clk 0:00:35.7]} 23. Rxb8 {[%clk 0:02:22.6]} 23... Bc5
{[%clk 0:00:37.6]} 24. Qe1 {[%clk 0:02:04.4]} 24... Kg7 {[%clk 0:00:38.4]} 25.
h4 {[%clk 0:01:51.9]} 25... Nf6 {[%clk 0:00:36.8]} 26. Nd5 {[%clk 0:01:15.6]}
26... Nxd5 {[%clk 0:00:14.3]} 27. Qe5+ {[%clk 0:01:15.8]} 27... Kh6 {[%clk
0:00:14.7]} 28. Qxd5 {[%clk 0:01:04.6]} 28... Qxf2+ {[%clk 0:00:16.1]} 29. Kh2
{[%clk 0:01:04]} 29... Bf1 {[%clk 0:00:17]} 30. Qd2+ {[%clk 0:01:03.2]} 1-0

[Event "*** Titled Tuesday Blitz"]
[Site "Chess.com"]
[Date "2018.01.02"]
[Round "8"]
[White "asms9699"]
[Black "ChainsOfFantasia"]
[Result "1-0"]
[WhiteElo "2511"]
[BlackElo "2462"]
[TimeControl "180+2"]
[EndTime "14:46:24 PST"]
[Termination "asms9699 won by checkmate"]

1. c4 {[%clk 0:03:01.9]} 1... e6 {[%clk 0:02:56.1]} 2. g3 {[%clk 0:03:02.9]}
2... d5 {[%clk 0:02:58]} 3. Bg2 {[%clk 0:03:04.2]} 3... Nf6 {[%clk 0:02:55.7]}
4. Nf3 {[%clk 0:03:05.5]} 4... Be7 {[%clk 0:02:54.2]} 5. O-O {[%clk 0:03:04.5]}
5... O-O {[%clk 0:02:55.6]} 6. b3 {[%clk 0:03:04.7]} 6... c5 {[%clk 0:02:56.3]}
7. e3 {[%clk 0:03:05.5]} 7... Nc6 {[%clk 0:02:55.9]} 8. Bb2 {[%clk 0:03:06.5]}
8... d4 {[%clk 0:02:57.4]} 9. exd4 {[%clk 0:03:07.3]} 9... cxd4 {[%clk
0:02:59.3]} 10. Re1 {[%clk 0:03:08.7]} 10... Ne8 {[%clk 0:03:00.2]} 11. Na3
{[%clk 0:03:07.9]} 11... f6 {[%clk 0:02:59.6]} 12. Nc2 {[%clk 0:03:07.2]} 12...
e5 {[%clk 0:03:00.4]} 13. d3 {[%clk 0:03:08]} 13... Nc7 {[%clk 0:03:01.5]} 14.
a3 {[%clk 0:03:04.7]} 14... a5 {[%clk 0:02:59.8]} 15. Rb1 {[%clk 0:03:02.5]}
15... Bd7 {[%clk 0:02:59.1]} 16. Bc1 {[%clk 0:03:02.4]} 16... b5 {[%clk
0:02:54.8]} 17. b4 {[%clk 0:02:53.3]} 17... axb4 {[%clk 0:02:51.8]} 18. axb4
{[%clk 0:02:55.2]} 18... Kh8 {[%clk 0:02:45.4]} 19. Nh4 {[%clk 0:02:47.7]} 19...
g5 {[%clk 0:02:39]} 20. Nf3 {[%clk 0:02:45.6]} 20... Rb8 {[%clk 0:02:26.3]} 21.
Bd2 {[%clk 0:02:42.7]} 21... Bg4 {[%clk 0:02:10.8]} 22. h3 {[%clk 0:02:40.6]}
22... Bf5 {[%clk 0:02:07]} 23. Nxg5 {[%clk 0:02:33.1]} 23... fxg5 {[%clk
0:02:00.7]} 24. Bxc6 {[%clk 0:02:33.1]} 24... Bxd3 {[%clk 0:01:42.7]} 25. Bxg5
{[%clk 0:02:29.8]} 25... Bxc2 {[%clk 0:01:43.4]} 26. Bxe7 {[%clk 0:02:30.6]}
26... Bxd1 {[%clk 0:01:37.7]} 27. Bxd8 {[%clk 0:02:31.5]} 27... Rfxd8 {[%clk
0:01:38.1]} 28. Rbxd1 {[%clk 0:02:30.6]} 28... bxc4 {[%clk 0:01:38.7]} 29. Rxe5
{[%clk 0:02:31.1]} 29... c3 {[%clk 0:01:26.2]} 30. Be4 {[%clk 0:02:29.4]} 30...
Rd7 {[%clk 0:01:15.7]} 31. Rc5 {[%clk 0:02:21]} 31... Rxb4 {[%clk 0:00:42.8]}
32. Rxc3 {[%clk 0:02:19.7]} 32... dxc3 {[%clk 0:00:41]} 33. Rxd7 {[%clk
0:02:20.3]} 33... Ne6 {[%clk 0:00:30.6]} 34. Bxh7 {[%clk 0:02:17.6]} 34... Nf8
{[%clk 0:00:25.8]} 35. Rc7 {[%clk 0:02:17.5]} 35... Nxh7 {[%clk 0:00:25.5]} 36.
Rxc3 {[%clk 0:02:15.3]} 36... Rb1+ {[%clk 0:00:26.4]} 37. Kg2 {[%clk 0:02:16]}
37... Rb7 {[%clk 0:00:28.3]} 38. g4 {[%clk 0:02:15.6]} 38... Kg7 {[%clk
0:00:30.2]} 39. Kg3 {[%clk 0:02:16.1]} 39... Nf6 {[%clk 0:00:31.6]} 40. f3
{[%clk 0:02:17.3]} 40... Rd7 {[%clk 0:00:31.8]} 41. h4 {[%clk 0:02:18.1]} 41...
Rd2 {[%clk 0:00:31.4]} 42. Rc7+ {[%clk 0:02:16]} 42... Nd7 {[%clk 0:00:27.3]}
43. g5 {[%clk 0:02:11.9]} 43... Kg6 {[%clk 0:00:27.3]} 44. f4 {[%clk 0:02:08.8]}
44... Rd4 {[%clk 0:00:24.4]} 45. Ra7 {[%clk 0:01:59.6]} 45... Nc5 {[%clk
0:00:22.1]} 46. Kg4 {[%clk 0:01:53.4]} 46... Ne6 {[%clk 0:00:22.9]} 47. h5#
{[%clk 0:01:53.8]} 1-0

[Event "*** Titled Tuesday Blitz"]
[Site "Chess.com"]
[Date "2018.01.02"]
[Round "8"]
[White "IamSchrodingersCat"]
[Black "Maitreia"]
[Result "0-1"]
[WhiteElo "2373"]
[BlackElo "2542"]
[TimeControl "180+2"]
[EndTime "14:46:48 PST"]
[Termination "Maitreia won by resignation"]

1. e4 {[%clk 0:03:01.9]} 1... c5 {[%clk 0:03:00.5]} 2. Nf3 {[%clk 0:03:02.3]}
2... d6 {[%clk 0:03:01.8]} 3. d4 {[%clk 0:03:03.6]} 3... Nf6 {[%clk 0:03:03.3]}
4. Nc3 {[%clk 0:03:04.4]} 4... cxd4 {[%clk 0:03:04.8]} 5. Nxd4 {[%clk
0:03:06.3]} 5... g6 {[%clk 0:03:06.4]} 6. Be3 {[%clk 0:03:05.6]} 6... Bg7 {[%clk
0:03:07.9]} 7. f3 {[%clk 0:03:06.9]} 7... O-O {[%clk 0:03:09.1]} 8. Qd2 {[%clk
0:03:08.4]} 8... Nc6 {[%clk 0:03:10.7]} 9. O-O-O {[%clk 0:03:09.1]} 9... d5
{[%clk 0:03:12.1]} 10. Qe1 {[%clk 0:03:07.3]} 10... e5 {[%clk 0:03:09.9]} 11.
Nxc6 {[%clk 0:03:07]} 11... bxc6 {[%clk 0:03:11.8]} 12. exd5 {[%clk 0:03:08.7]}
12... Nxd5 {[%clk 0:03:12.6]} 13. Bc4 {[%clk 0:03:09]} 13... Be6 {[%clk
0:03:13.6]} 14. Ne4 {[%clk 0:03:10.1]} 14... h6 {[%clk 0:03:02.3]} 15. g4 {[%clk
0:02:49.8]} 15... Re8 {[%clk 0:02:53.4]} 16. h4 {[%clk 0:02:15.6]} 16... Qc7
{[%clk 0:02:52.3]} 17. Bc5 {[%clk 0:02:15.7]} 17... a5 {[%clk 0:02:47.3]} 18. g5
{[%clk 0:01:39.1]} 18... h5 {[%clk 0:02:48]} 19. Qf2 {[%clk 0:01:21.5]} 19... a4
{[%clk 0:02:46]} 20. a3 {[%clk 0:01:20.8]} 20... Rab8 {[%clk 0:02:43.4]} 21. Bd6
{[%clk 0:01:19.1]} 21... Qb7 {[%clk 0:02:44.7]} 22. Bxb8 {[%clk 0:01:15.4]}
22... Rxb8 {[%clk 0:02:46.6]} 23. c3 {[%clk 0:01:11.3]} 23... Bf8 {[%clk
0:02:42.3]} 24. Rh2 {[%clk 0:00:59.4]} 24... Nxc3 {[%clk 0:02:33.3]} 25. Nxc3
{[%clk 0:00:37.9]} 25... Bxc4 {[%clk 0:02:33.7]} 26. Ne4 {[%clk 0:00:21.2]}
26... Bxa3 {[%clk 0:01:58.8]} 27. Rd7 {[%clk 0:00:11.3]} 27... Qb3 {[%clk
0:01:48.7]} 28. Qc2 {[%clk 0:00:06]} 28... Qe3+ {[%clk 0:01:38.1]} 29. Kb1
{[%clk 0:00:02.7]} 29... Bd5 {[%clk 0:01:19.5]} 30. Nf6+ {[%clk 0:00:03.4]}
30... Kg7 {[%clk 0:01:21]} 31. Ka1 {[%clk 0:00:03]} 31... Bxb2+ {[%clk
0:01:21.3]} 32. Qxb2 {[%clk 0:00:04.3]} 32... Rxb2 {[%clk 0:01:23.1]} 33. Rxb2
{[%clk 0:00:05.6]} 33... Qe1+ {[%clk 0:01:16.7]} 34. Rb1 {[%clk 0:00:04]} 34...
Qc3+ {[%clk 0:01:18.2]} 35. Rb2 {[%clk 0:00:05.5]} 35... a3 {[%clk 0:01:19.2]}
36. Rb7 {[%clk 0:00:06.2]} 36... axb2+ {[%clk 0:01:18.3]} 37. Rxb2 {[%clk
0:00:08.1]} 37... Bxf3 {[%clk 0:01:13.8]} 38. Kb1 {[%clk 0:00:05]} 38... Be4+
{[%clk 0:01:14.8]} 39. Ka1 {[%clk 0:00:06.3]} 39... Qa3+ {[%clk 0:01:13.9]} 0-1

[Event "*** Titled Tuesday Blitz"]
[Site "Chess.com"]
[Date "2018.01.02"]
[Round "8"]
[White "Tonychess32"]
[Black "Kaphrep"]
[Result "0-1"]
[WhiteElo "2436"]
[BlackElo "2644"]
[TimeControl "180+2"]
[EndTime "14:46:57 PST"]
[Termination "Kaphrep won on time"]

1. e4 {[%clk 0:03:01.8]} 1... e5 {[%clk 0:02:59.6]} 2. Nf3 {[%clk 0:03:01.9]}
2... Nc6 {[%clk 0:03:00.6]} 3. Bc4 {[%clk 0:03:03]} 3... Bc5 {[%clk 0:02:59.9]}
4. d3 {[%clk 0:03:04.1]} 4... Nf6 {[%clk 0:02:59.7]} 5. O-O {[%clk 0:03:05.1]}
5... d6 {[%clk 0:02:59.9]} 6. c3 {[%clk 0:03:05.9]} 6... a5 {[%clk 0:02:57.5]}
7. a4 {[%clk 0:03:06.8]} 7... h6 {[%clk 0:02:43.9]} 8. h3 {[%clk 0:03:06]} 8...
O-O {[%clk 0:02:44.1]} 9. Re1 {[%clk 0:03:06.6]} 9... Re8 {[%clk 0:02:41]} 10.
Bb3 {[%clk 0:02:56.5]} 10... Ba7 {[%clk 0:02:31.1]} 11. Nbd2 {[%clk 0:02:55.4]}
11... Ne7 {[%clk 0:02:26.4]} 12. Nf1 {[%clk 0:02:54.2]} 12... Ng6 {[%clk
0:02:26.9]} 13. Ng3 {[%clk 0:02:53.3]} 13... d5 {[%clk 0:02:25.1]} 14. Qe2
{[%clk 0:02:53.2]} 14... Nf4 {[%clk 0:02:19.8]} 15. Qf1 {[%clk 0:02:25.4]} 15...
dxe4 {[%clk 0:01:59.9]} 16. dxe4 {[%clk 0:02:23]} 16... Qd3 {[%clk 0:01:56.5]}
17. Bxf4 {[%clk 0:02:16.1]} 17... Qxf1+ {[%clk 0:01:56]} 18. Kxf1 {[%clk
0:02:17.3]} 18... exf4 {[%clk 0:01:57.9]} 19. Ne2 {[%clk 0:02:02.8]} 19... Nxe4
{[%clk 0:01:48.4]} 20. Nxf4 {[%clk 0:01:43.8]} 20... Bxf2 {[%clk 0:01:47.7]} 21.
Rxe4 {[%clk 0:00:44.9]} 21... Rxe4 {[%clk 0:01:47.1]} 22. Kxf2 {[%clk
0:00:19.4]} 22... Rxf4 {[%clk 0:01:46.7]} 23. Re1 {[%clk 0:00:19.5]} 23... Kf8
{[%clk 0:01:37]} 24. Kg3 {[%clk 0:00:16.4]} 24... Rf6 {[%clk 0:01:37.6]} 25. Ne5
{[%clk 0:00:14.5]} 25... Be6 {[%clk 0:01:37.9]} 26. Bc2 {[%clk 0:00:05.2]} 26...
Rd8 {[%clk 0:01:35.8]} 27. Re2 {[%clk 0:00:05.9]} 27... g5 {[%clk 0:01:31.2]}
28. Nf3 {[%clk 0:00:05.2]} 28... Rf4 {[%clk 0:01:29.3]} 29. Nd4 {[%clk
0:00:06.5]} 29... Bc4 {[%clk 0:01:25.6]} 30. Re3 {[%clk 0:00:07.4]} 30... c5
{[%clk 0:01:26.3]} 31. Nf3 {[%clk 0:00:06.1]} 31... f6 {[%clk 0:01:27.3]} 32.
Bg6 {[%clk 0:00:06.4]} 32... Bf7 {[%clk 0:01:27.8]} 33. Bb1 {[%clk 0:00:07.4]}
33... h5 {[%clk 0:01:27]} 34. h4 {[%clk 0:00:08]} 34... Rg4+ {[%clk 0:01:24.9]}
35. Kf2 {[%clk 0:00:09.2]} 35... gxh4 {[%clk 0:01:25.2]} 36. Bf5 {[%clk
0:00:10.6]} 36... Rxa4 {[%clk 0:01:24.2]} 37. Re2 {[%clk 0:00:06.8]} 37... Rf4
{[%clk 0:01:23.6]} 38. Ke3 {[%clk 0:00:07.6]} 38... Rxf5 {[%clk 0:01:24.5]} 0-1

[Event "*** Titled Tuesday Blitz"]
[Site "Chess.com"]
[Date "2018.01.02"]
[Round "8"]
[White "littleozy"]
[Black "Squirlolz"]
[Result "1-0"]
[WhiteElo "2405"]
[BlackElo "2462"]
[TimeControl "180+2"]
[EndTime "14:47:04 PST"]
[Termination "littleozy won by resignation"]

1. d4 {[%clk 0:03:01.9]} 1... Nf6 {[%clk 0:02:59.5]} 2. c4 {[%clk 0:03:03.4]}
2... e6 {[%clk 0:03:00.8]} 3. Nf3 {[%clk 0:03:04.1]} 3... c5 {[%clk 0:03:01.7]}
4. d5 {[%clk 0:03:04.4]} 4... d6 {[%clk 0:03:03.1]} 5. g3 {[%clk 0:03:04.5]}
5... exd5 {[%clk 0:03:04.4]} 6. cxd5 {[%clk 0:03:04.9]} 6... g6 {[%clk
0:03:06.3]} 7. Bg2 {[%clk 0:03:06]} 7... Bg7 {[%clk 0:03:08]} 8. O-O {[%clk
0:03:07.6]} 8... O-O {[%clk 0:03:09.7]} 9. Nc3 {[%clk 0:03:09.2]} 9... Nbd7
{[%clk 0:03:11.3]} 10. Bf4 {[%clk 0:03:05.8]} 10... Qe7 {[%clk 0:03:11.9]} 11.
Nd2 {[%clk 0:03:03.7]} 11... Nh5 {[%clk 0:03:00.3]} 12. Be3 {[%clk 0:02:58.6]}
12... Ne5 {[%clk 0:03:00.3]} 13. Nde4 {[%clk 0:02:38.2]} 13... f5 {[%clk
0:02:54.5]} 14. Bg5 {[%clk 0:02:39.1]} 14... Qc7 {[%clk 0:02:38.5]} 15. Nd2
{[%clk 0:02:32.8]} 15... h6 {[%clk 0:02:32.4]} 16. Bf4 {[%clk 0:02:33.9]} 16...
Nxf4 {[%clk 0:02:19.1]} 17. gxf4 {[%clk 0:02:35.8]} 17... Nf7 {[%clk 0:02:15.5]}
18. Kh1 {[%clk 0:02:28.3]} 18... Bd7 {[%clk 0:02:16.1]} 19. Rg1 {[%clk
0:02:28.8]} 19... b5 {[%clk 0:02:15.2]} 20. a4 {[%clk 0:02:26.1]} 20... b4
{[%clk 0:02:10.1]} 21. Nb5 {[%clk 0:02:21.2]} 21... Bxb5 {[%clk 0:02:10.4]} 22.
axb5 {[%clk 0:02:23.1]} 22... Bxb2 {[%clk 0:02:10.5]} 23. Ra6 {[%clk 0:02:22.6]}
23... Kh7 {[%clk 0:02:01.1]} 24. Nc4 {[%clk 0:02:21.9]} 24... Bg7 {[%clk
0:01:57.2]} 25. e4 {[%clk 0:02:22.6]} 25... fxe4 {[%clk 0:01:09.8]} 26. Bxe4
{[%clk 0:02:21.8]} 26... Nh8 {[%clk 0:01:11.7]} 27. Qg4 {[%clk 0:02:12.7]} 27...
Rf6 {[%clk 0:01:09.7]} 28. Ne5 {[%clk 0:01:42.9]} 28... Qe7 {[%clk 0:00:49.5]}
29. Bxg6+ {[%clk 0:01:24.2]} 29... Nxg6 {[%clk 0:00:49.2]} 30. Nxg6 {[%clk
0:01:25.6]} 30... Qe4+ {[%clk 0:00:50.3]} 31. f3 {[%clk 0:01:22]} 31... Qxg6
{[%clk 0:00:51]} 32. Qd7 {[%clk 0:01:17.8]} 32... Qf7 {[%clk 0:00:39.1]} 33.
Rxd6 {[%clk 0:01:18.2]} 33... Rxd6 {[%clk 0:00:20.4]} 34. Qxf7 {[%clk
0:01:17.7]} 34... Rg8 {[%clk 0:00:15.4]} 35. Qe7 {[%clk 0:00:55.7]} 35... Rf6
{[%clk 0:00:12.3]} 36. Rxg7+ {[%clk 0:00:53.9]} 36... Rxg7 {[%clk 0:00:11.9]}
37. Qxf6 {[%clk 0:00:55.3]} 37... b3 {[%clk 0:00:12.2]} 38. Qc3 {[%clk
0:00:52.8]} 38... c4 {[%clk 0:00:11.3]} 39. Qxc4 {[%clk 0:00:53.3]} 1-0